bitfinex/quotes_BTCUSD_20250515
["timestamp","ask_amount","ask_price","bid_price","bid_amount"]
[1747309897280,0.07463581,102330.0,102320.0,1.04423286]
[1747309898022,0.0648637,102330.0,102320.0,1.04423286]
[1747309898710,0.07463581,102330.0,102320.0,1.04423286]
[1747309898890,0.0648637,102330.0,102320.0,1.04423286]
[1747309899085,0.270082,102330.0,102320.0,0.67674026]
[1747309899304,0.07463581,102330.0,102320.0,1.04423286]
[1747309901241,0.0648637,102330.0,102320.0,1.04423286]
[1747309903300,0.2603098,102330.0,102320.0,1.03446027]
[1747309903446,0.27008191,102330.0,102320.0,1.04423286]
[1747309903656,0.07463581,102330.0,102320.0,0.86048656]
[1747309903873,0.26031076,102330.0,102320.0,0.82139526]
[1747309904074,0.26031076,102330.0,102320.0,0.83116804]
[1747309904644,0.26031066,102330.0,102320.0,0.84094063]
[1747309904877,0.27008296,102330.0,102320.0,0.83116804]
[1747309905997,0.27008296,102330.0,102320.0,0.83116813]
[1747309906413,0.27008296,102330.0,102320.0,0.84094091]
[1747309907068,0.26031095,102330.0,102320.0,0.83116833]
[1747309907705,0.26031095,102330.0,102320.0,0.84094111]
[1747309912291,0.26031095,102330.0,102320.0,0.78190682]
[1747309912944,0.26031095,102330.0,102320.0,0.7916795]
[1747309914149,0.26031095,102330.0,102320.0,0.77213404]
[1747309914366,0.26031095,102330.0,102320.0,0.78190691]
[1747309915854,0.26031095,102330.0,102320.0,0.8409412]
[1747309916720,0.24076664,102330.0,102320.0,0.422681]
[1747309916997,0.24076664,102330.0,102320.0,0.06814015]
[1747309917257,0.52755604,102330.0,102320.0,0.06814015]
[1747309917484,0.53648084,102330.0,102320.0,0.06814015]
[1747309918151,0.72592084,102330.0,102320.0,0.06814015]
[1747309918368,0.71699604,102330.0,102320.0,0.082681]
[1747309918585,0.71699604,102330.0,102320.0,0.06714015]
[1747309919045,0.71799604,102330.0,102320.0,0.06714015]
[1747309919252,0.71799604,102330.0,102320.0,0.081681]
[1747309919718,0.71799604,102330.0,102320.0,0.079681]
[1747309919935,0.71799604,102330.0,102320.0,0.080681]
[1747309921116,0.81530544,102330.0,102320.0,0.080681]
[1747309921757,0.81530544,102330.0,102320.0,0.01554085]
[1747309922364,1.14007604,102330.0,102320.0,0.001]
[1747309929638,0.76115604,102330.0,102320.0,0.001]
[1747309929788,1.14011604,102330.0,102320.0,0.001]
[1747309934367,1.48011604,102330.0,102320.0,0.001]
[1747309935322,1.47911604,102330.0,102320.0,0.001]
[1747309935539,1.57642544,102330.0,102320.0,0.001]
[1747309935764,1.57642544,102330.0,102280.0,0.19828715]
[1747309935765,0.0318,102300.0,102280.0,0.19828715]
[1747309935979,0.21508957,102290.0,102280.0,0.20819123]
[1747309936188,0.21508957,102290.0,102280.0,0.42544196]
[1747309936398,0.21508957,102290.0,102280.0,0.43521904]
[1747309937216,0.21508957,102290.0,102280.0,0.43526728]
[1747309937618,0.21508957,102290.0,102280.0,0.43926728]
[1747309937825,0.21508957,102290.0,102280.0,0.44226728]
[1747309938281,0.21508957,102290.0,102280.0,0.4323632]
[1747309940218,0.21508957,102290.0,102280.0,0.4167632]
[1747309940638,0.21508957,102290.0,102280.0,0.02769817]
[1747309941066,0.23098957,102290.0,102280.0,0.02769817]
[1747309941483,0.23098957,102290.0,102280.0,0.21144447]
[1747309941945,0.23098957,102290.0,102280.0,0.02769817]
[1747309942369,0.34479897,102290.0,102280.0,0.01315732]
[1747309942575,0.34479897,102290.0,102280.0,0.00704824]
[1747309942792,0.53423897,102290.0,102280.0,0.00704824]
[1747309943249,0.53423897,102290.0,102280.0,0.00304824]
[1747309943475,0.53423897,102290.0,102280.0,0.01115791]
[1747309943682,0.53423897,102290.0,102280.0,0.00204824]
[1747309944098,0.53423897,102290.0,102280.0,0.00304824]
[1747309945189,0.62616428,102290.0,102280.0,0.00304824]
[1747309945633,0.87423897,102290.0,102280.0,0.00304824]
[1747309946329,1.34457897,102290.0,102280.0,0.00304824]
[1747309951311,1.34457897,102290.0,102280.0,0.00204824]
[1747309952117,1.34457897,102290.0,102280.0,4.824e-05]
[1747309952563,1.34457897,102290.0,102280.0,0.00204824]
[1747309952787,1.34453897,102290.0,102280.0,0.00204824]
[1747309953002,1.53397897,102290.0,102280.0,4.824e-05]
[1747309953247,1.53397897,102290.0,102280.0,0.00104824]
[1747309954311,1.15513897,102290.0,102280.0,0.00104824]
[1747309954523,1.53401897,102290.0,102280.0,0.00104824]
[1747309961774,1.63132837,102290.0,102280.0,0.00104824]
[1747309962200,1.53401897,102290.0,102280.0,0.00104824]
[1747309966973,0.78273897,102290.0,102280.0,0.01558909]
[1747309967205,1.07402994,102290.0,102280.0,0.61870042]
[1747309967431,0.26317439,102290.0,102280.0,0.23574532]
[1747309967637,0.26317439,102290.0,102280.0,0.43128697]
[1747309967844,0.26317439,102290.0,102280.0,0.44106405]
[1747309968054,0.26317439,102290.0,102280.0,0.23574532]
[1747309968266,0.26317439,102290.0,102280.0,0.44106395]
[1747309968489,0.26317439,102290.0,102280.0,0.45084084]
[1747309968899,0.21507439,102290.0,102280.0,0.45084084]
[1747309969118,0.21507439,102290.0,102280.0,0.46061763]
[1747309970357,0.21507439,102290.0,102280.0,0.44106395]
[1747309970564,0.20529856,102290.0,102280.0,0.44106395]
[1747309971388,0.20529856,102290.0,102280.0,0.43128697]
[1747309971595,0.19552253,102290.0,102280.0,0.43128697]
[1747309971802,0.19552253,102290.0,102280.0,0.23574532]
[1747309972764,0.19552253,102290.0,102280.0,0.44106386]
[1747309972974,0.20529798,102290.0,102280.0,0.2455224]
[1747309973144,0.19552253,102290.0,102280.0,0.44106405]
[1747309973348,0.38496253,102290.0,102280.0,0.23574532]
[1747309973820,0.38496253,102290.0,102280.0,0.44106405]
[1747309974063,0.19552253,102290.0,102280.0,0.44106405]
[1747309974260,0.38496253,102290.0,102280.0,0.44106405]
[1747309977360,0.38496253,102290.0,102280.0,0.05199902]
[1747309977525,0.38496253,102290.0,102280.0,0.23574532]
[1747309978082,0.38496253,102290.0,102280.0,0.43128697]
[1747309978287,0.38496253,102290.0,102280.0,0.44106395]
[1747309979505,0.38496253,102290.0,102280.0,0.43128697]
[1747309979932,0.19552253,102290.0,102280.0,0.23574532]
[1747309980140,0.38492253,102290.0,102280.0,0.23574532]
[1747309980566,0.38492253,102290.0,102280.0,0.05199902]
[1747309980771,0.38492253,102290.0,102280.0,0.23574532]
[1747309980975,0.38492253,102290.0,102280.0,0.02169902]
[1747309981193,0.48223193,102290.0,102280.0,0.02169902]
[1747309981396,0.51273193,102290.0,102280.0,0.02169902]
[1747309981810,0.51273193,102290.0,102280.0,0.00715817]
[1747309982418,0.51273193,102290.0,102280.0,0.02169902]
[1747309983352,0.60249054,102290.0,102280.0,0.00715817]
[1747309983551,0.41309054,102290.0,102280.0,0.00715817]
[1747309983757,0.70189193,102290.0,102280.0,0.01558909]
[1747309983972,0.32333193,102290.0,102280.0,0.01558909]
[1747309984197,0.70189193,102290.0,102280.0,0.01558909]
[1747309984401,0.70189193,102290.0,102280.0,0.01458909]
[1747309985400,0.70389193,102290.0,102280.0,0.01458909]
[1747309987297,0.48411193,102290.0,102280.0,0.19833539]
[1747309987509,0.67339193,102290.0,102280.0,0.19833539]
[1747309987764,0.67339193,102290.0,102280.0,0.01458909]
[1747309988173,0.67339193,102290.0,102280.0,0.02069899]
[1747309990649,0.67339193,102290.0,102280.0,0.03589899]
[1747309990850,0.67339193,102290.0,102280.0,0.05129899]
[1747309991862,0.29483193,102290.0,102280.0,0.05129899]
[1747309993067,0.29483193,102290.0,102280.0,0.02069899]
[1747309993549,0.31073193,102290.0,102280.0,0.02069899]
[1747309993746,0.32643193,102290.0,102280.0,0.02069899]
[1747309994166,0.31073193,102290.0,102280.0,0.02069899]
[1747309994379,0.29483193,102290.0,102280.0,0.02069899]
[1747309994584,0.67335193,102290.0,102280.0,0.02069899]
[1747309999087,0.68895193,102290.0,102280.0,0.02069899]
[1747310001210,0.70505193,102290.0,102280.0,0.02069899]
[1747310001435,0.32653193,102290.0,102280.0,0.02069899]
[1747310001602,0.70501193,102290.0,102280.0,0.02069899]
[1747310004443,0.68891193,102290.0,102280.0,0.02069899]
[1747310006555,0.67331193,102290.0,102280.0,0.02069899]
[1747310006962,0.29483193,102290.0,102280.0,0.02069899]
[1747310007173,0.67327193,102290.0,102280.0,0.02069899]
[1747310008482,0.67327193,102290.0,102280.0,0.0206988]
[1747310011613,0.48411193,102290.0,102280.0,0.0206988]
[1747310011839,0.38680253,102290.0,102280.0,0.2353451]
[1747310012045,0.19752253,102290.0,102280.0,0.44066383]
[1747310013080,0.19552253,102290.0,102280.0,0.44066383]
[1747310013894,0.19552253,102290.0,102280.0,0.44166383]
[1747310014343,0.19552253,102290.0,102280.0,0.45144081]
[1747310014764,0.2150743,102290.0,102280.0,0.4709941]
[1747310014927,0.22485042,102290.0,102280.0,0.4709941]
[1747310015750,0.22485042,102290.0,102280.0,0.4709943]
[1747310015995,0.22485042,102290.0,102280.0,0.4612176]
[1747310016346,0.22485042,102290.0,102280.0,0.4709942]
[1747310017575,0.21507468,102290.0,102280.0,0.4612176]
[1747310018249,0.20529865,102290.0,102280.0,0.2774713]
[1747310018476,0.20529865,102290.0,102280.0,0.26769451]
[1747310018600,0.19552253,102290.0,102280.0,0.0216988]
[1747310019057,0.41580253,102290.0,102280.0,0.0216988]
[1747310019284,0.22672253,102290.0,102280.0,0.0216988]
[1747310019501,0.41580253,102290.0,102280.0,0.0216988]
[1747310028337,0.38460253,102290.0,102280.0,0.21724045]
[1747310028539,0.38460253,102290.0,102280.0,0.0216988]
[1747310028753,0.38460253,102290.0,102280.0,0.22701743]
[1747310030909,0.38460253,102290.0,102280.0,0.24221743]
[1747310031069,0.38460253,102290.0,102280.0,0.23244045]
[1747310031549,0.38460253,102290.0,102280.0,0.21724045]
[1747310036372,0.38460253,102290.0,102280.0,0.22701753]
[1747310037538,0.38460253,102290.0,102280.0,0.0216988]
[1747310037738,0.39980253,102290.0,102280.0,0.0216988]
[1747310043983,0.39980253,102290.0,102280.0,0.21724045]
[1747310044180,0.38460253,102290.0,102280.0,0.0216988]
[1747310044381,0.38460253,102290.0,102280.0,0.23679432]
[1747310044601,0.38460253,102290.0,102280.0,0.22701743]
[1747310044957,0.40396419,102300.0,102290.0,0.20529846]
[1747310045121,0.50127359,102300.0,102290.0,0.22039846]
[1747310045283,0.21820444,102300.0,102290.0,0.46321263]
[1747310045488,0.21820444,102300.0,102290.0,0.46932234]
[1747310045489,0.19865431,102300.0,102290.0,0.46932234]
[1747310045701,0.2084289,102300.0,102290.0,0.46932234]
[1747310045902,0.01954881,102300.0,102290.0,0.46932234]
[1747310046097,0.0313235,102300.0,102290.0,0.46932234]
[1747310046369,0.04109838,102300.0,102290.0,0.46932234]
[1747310046533,0.03909838,102300.0,102290.0,0.46932234]
[1747310046949,0.03909838,102300.0,102290.0,0.47032234]
[1747310047367,0.2346018,102300.0,102290.0,0.46054689]
[1747310047528,0.23460266,102300.0,102290.0,0.44099532]
[1747310047724,0.03909904,102300.0,102290.0,0.46054651]
[1747310047973,0.23460303,102300.0,102290.0,0.45077106]
[1747310048342,0.03910009,102300.0,102290.0,0.47032225]
[1747310048538,0.03910009,102300.0,102290.0,0.4800977]
[1747310048539,0.02932492,102300.0,102290.0,0.4800977]
[1747310048751,0.23460351,102300.0,102290.0,0.46575802]
[1747310048946,0.21505366,102300.0,102290.0,0.22694921]
[1747310049149,0.21505366,102300.0,102290.0,0.24650117]
[1747310049382,0.19550342,102300.0,102290.0,0.02165056]
[1747310050162,0.19550342,102300.0,102290.0,0.01554085]
[1747310050374,0.19550342,102300.0,102290.0,0.0216495]
[1747310053183,0.21200342,102300.0,102290.0,0.0216495]
[1747310053596,0.22720342,102300.0,102290.0,0.0216495]
[1747310056476,0.21200342,102300.0,102290.0,0.0216495]
[1747310056676,0.19550342,102300.0,102290.0,0.0216495]
[1747310056858,0.21120342,102300.0,102290.0,0.0216495]
[1747310058017,0.19550342,102300.0,102290.0,0.0216495]
[1747310058228,0.19550342,102300.0,102290.0,0.22694806]
[1747310064625,0.19550342,102300.0,102290.0,0.0216495]
[1747310065076,0.19550342,102300.0,102290.0,0.03142562]
[1747310072529,0.19550342,102300.0,102290.0,0.23672398]
[1747310072736,0.19550342,102300.0,102290.0,0.25262418]
[1747310073135,0.19550342,102300.0,102290.0,0.23672418]
[1747310073303,0.19550342,102300.0,102290.0,0.22694815]
[1747310073542,0.19550342,102300.0,102290.0,0.23672418]
[1747310074149,0.19550342,102300.0,102290.0,0.24650011]
[1747310074571,0.19550342,102300.0,102290.0,0.46044564]
[1747310074995,0.02932378,102300.0,102290.0,0.47022109]
[1747310075206,0.03909847,102300.0,102290.0,0.47022109]
[1747310075624,0.23460255,102300.0,102290.0,0.47022147]
[1747310075826,0.23460255,102300.0,102290.0,0.47999692]
[1747310077252,0.02932416,102300.0,102290.0,0.47999692]
[1747310077492,0.02932359,102300.0,102290.0,0.47999692]
[1747310077856,0.0293235,102300.0,102290.0,0.47999692]
[1747310078073,0.01954881,102300.0,102290.0,0.47999692]
[1747310078267,0.0293235,102300.0,102290.0,0.47999692]
[1747310080123,0.03909838,102300.0,102290.0,0.47999692]
[1747310080356,0.0293235,102300.0,102290.0,0.47999692]
[1747310080896,0.03909838,102300.0,102290.0,0.47999692]
[1747310081327,0.01954881,102300.0,102290.0,0.47999692]
[1747310081508,0.02932359,102300.0,102290.0,0.47999692]
[1747310081721,0.01954881,102300.0,102290.0,0.47999692]
[1747310081894,0.0293235,102300.0,102290.0,0.47999692]
[1747310082089,0.0293235,102300.0,102290.0,0.29625062]
[1747310082297,0.03909838,102300.0,102290.0,0.49501065]
[1747310082705,0.03909838,102300.0,102290.0,0.31126435]
[1747310083073,0.03909838,102300.0,102290.0,0.49501065]
[1747310083898,0.04887335,102300.0,102290.0,0.49501065]
[1747310084097,0.2443782,102300.0,102290.0,0.3014889]
[1747310084600,0.23460351,102300.0,102290.0,0.3014889]
[1747310085214,0.23460351,102300.0,102290.0,0.31126445]
[1747310085427,0.23460351,102300.0,102290.0,0.29616445]
[1747310085613,0.23460351,102300.0,102290.0,0.29616397]
[1747310085858,0.01954947,102300.0,102290.0,0.31116397]
[1747310086081,0.01954947,102300.0,102290.0,0.49491027]
[1747310086277,0.42605573,102320.0,102300.0,0.27076852]
[1747310086546,0.4036286,102320.0,102310.0,0.42309361]
[1747310086759,0.4036286,102320.0,102310.0,0.21979937]
[1747310086967,0.2150286,102320.0,102310.0,0.21979937]
[1747310087176,0.20525573,102320.0,102310.0,0.23568214]
[1747310087605,0.20525573,102320.0,102310.0,0.0206495]
[1747310087832,0.19548257,102320.0,102310.0,0.22590802]
[1747310088038,0.19548257,102320.0,102310.0,0.0206495]
[1747310088833,0.19548257,102320.0,102310.0,0.21613381]
[1747310089090,0.19548257,102320.0,102310.0,0.22590802]
[1747310089508,0.19548257,102320.0,102310.0,0.22690802]
[1747310090338,0.19548257,102320.0,102310.0,0.23668204]
[1747310092244,0.19548257,102320.0,102310.0,0.42042834]
[1747310093321,0.20525573,102320.0,102310.0,0.42042834]
[1747310093529,0.01954537,102320.0,102310.0,0.44670131]
[1747310093790,0.23455679,102320.0,102310.0,0.45202786]
[1747310093970,0.24433005,102320.0,102310.0,0.45202786]
[1747310094195,0.24433005,102320.0,102310.0,0.48523327]
[1747310094406,0.24433005,102320.0,102310.0,0.4618015]
[1747310096508,0.02931843,102320.0,102310.0,0.47157504]
[1747310097625,0.23455679,102320.0,102310.0,0.47157504]
[1747310097820,0.24433005,102320.0,102310.0,0.47157504]
[1747310099328,0.23455746,102320.0,102310.0,0.45202786]
[1747310099683,0.22478468,102320.0,102310.0,0.45202786]
[1747310100316,0.22478468,102320.0,102310.0,0.4618015]
[1747310100524,0.02931948,102320.0,102310.0,0.47157504]
[1747310100938,0.21501142,102320.0,102310.0,0.47157504]
[1747310101094,0.21501142,102320.0,102310.0,0.4618015]
[1747310101313,0.21501142,102320.0,102310.0,0.4302015]
[1747310102312,0.21501142,102320.0,102310.0,0.4464015]
[1747310102534,0.01954527,102320.0,102310.0,0.47247504]
[1747310102743,0.02931833,102320.0,102310.0,0.47247504]
[1747310103378,0.23455679,102320.0,102310.0,0.4464015]
[1747310104035,0.23455679,102320.0,102310.0,0.42042786]
[1747310107060,0.22478353,102320.0,102310.0,0.45617504]
[1747310107263,0.23455669,102320.0,102310.0,0.45617504]
[1747310107663,0.23455746,102320.0,102310.0,0.4464015]
[1747310108962,0.23455746,102320.0,102310.0,0.42042786]
[1747310109373,0.23455746,102320.0,102310.0,0.43652786]
[1747310109721,0.23455746,102320.0,102310.0,0.42042786]
[1747310110128,0.23455746,102320.0,102310.0,0.4302015]
[1747310110805,0.23455746,102320.0,102310.0,0.41065413]
[1747310111009,0.22478468,102320.0,102310.0,0.42042805]
[1747310111416,0.24068468,102320.0,102310.0,0.42042805]
[1747310111716,0.24068468,102320.0,102310.0,0.43020188]
[1747310112343,0.23091162,102320.0,102310.0,0.22690802]
[1747310112559,0.24611162,102320.0,102310.0,0.23668194]
[1747310112776,0.24611162,102320.0,102310.0,0.22690802]
[1747310112989,0.23633846,102320.0,102310.0,0.0216495]
[1747310113874,0.23633846,102320.0,102310.0,0.00710865]
[1747310114291,0.23633846,102320.0,102310.0,0.0216495]
[1747310136611,0.23633846,102320.0,102310.0,0.21713381]
[1747310136838,0.23633846,102320.0,102310.0,0.22690802]
[1747310137038,0.2265652,102320.0,102310.0,0.22690802]
[1747310137350,0.00977278,102320.0,102310.0,0.43997581]
[1747310137551,0.01954527,102320.0,102310.0,0.45657581]
[1747310137769,0.22478353,102320.0,102310.0,0.45657581]
[1747310137969,0.22478353,102320.0,102310.0,0.47287581]
[1747310138188,0.23455679,102320.0,102310.0,0.45657581]
[1747310139147,0.23455679,102320.0,102310.0,0.44680227]
[1747310139351,0.23455679,102320.0,102310.0,0.456576]
[1747310139599,0.23455679,102320.0,102310.0,0.439976]
[1747310141955,0.2247843,102320.0,102310.0,0.439976]
[1747310143313,0.21501152,102320.0,102310.0,0.23668214]
[1747310143516,0.22083846,102320.0,102310.0,0.23668214]
[1747310143711,0.22083846,102320.0,102310.0,0.24645616]
[1747310147744,0.20523846,102320.0,102310.0,0.25622999]
[1747310149226,0.20523846,102320.0,102310.0,0.24645616]
[1747310149679,0.20523846,102320.0,102310.0,0.23668214]
[1747310149883,0.22033846,102320.0,102310.0,0.26988793]
[1747310150092,0.22033846,102320.0,102310.0,0.25623008]
[1747310151645,0.22033846,102320.0,102310.0,0.0216495]
[1747310151872,0.2256652,102320.0,102310.0,0.0216495]
[1747310152090,0.23458616,102320.0,102310.0,0.0216495]
[1747310153624,0.2256652,102320.0,102310.0,0.0216495]
[1747310156537,0.2105652,102320.0,102310.0,0.0216495]
[1747310156728,0.2105652,102320.0,102310.0,0.2053958]
[1747310158230,0.2105652,102320.0,102310.0,0.0216495]
[1747310161585,0.2269652,102320.0,102310.0,0.0216495]
[1747310163992,0.2105652,102320.0,102310.0,0.0216495]
[1747310166003,0.2105652,102320.0,102310.0,0.03136898]
[1747310168314,0.2105652,102320.0,102310.0,0.0216495]
[1747310172681,0.1954652,102320.0,102310.0,0.0216495]
[1747310173349,0.1954652,102320.0,102310.0,0.21713381]
[1747310173953,0.1954652,102320.0,102310.0,0.22690802]
[1747310174179,0.21501123,102320.0,102310.0,0.43020227]
[1747310174518,0.24432976,102320.0,102310.0,0.48164964]
[1747310175000,0.23455727,102320.0,102310.0,0.48164964]
[1747310175415,0.23455727,102320.0,102310.0,0.46576735]
[1747310175615,0.23455727,102320.0,102310.0,0.49530658]
[1747310175745,0.23455727,102320.0,102310.0,0.47187481]
[1747310176879,0.23455727,102320.0,102310.0,0.48164845]
[1747310177312,0.23455727,102320.0,102310.0,0.47187481]
[1747310177721,0.23455727,102320.0,102310.0,0.47207481]
[1747310177931,0.22478449,102320.0,102310.0,0.47207481]
[1747310179454,0.22478449,102320.0,102310.0,0.27855477]
[1747310179655,0.21501162,102320.0,102310.0,0.46230126]
[1747310181263,0.21501162,102320.0,102310.0,0.26295496]
[1747310181471,0.1954652,102320.0,102310.0,0.0216483]
[1747310181707,0.2115652,102320.0,102310.0,0.0216483]
[1747310182195,0.2277652,102320.0,102310.0,0.0216483]
[1747310183179,0.3250746,102320.0,102310.0,0.00710745]
[1747310183450,0.40358679,102320.0,102310.0,0.00710745]
[1747310183929,0.41317423,102320.0,102310.0,0.00710745]
[1747310184180,0.4343561,102320.0,102310.0,0.00710745]
[1747310184865,0.4343561,102320.0,102310.0,0.0216483]
[1747310185077,0.23655833,102310.0,102300.0,0.06003429]
[1747310185292,0.70938773,102310.0,102300.0,0.07457514]
[1747310185504,0.70938773,102310.0,102300.0,0.07968407]
[1747310186096,0.70938773,102310.0,102300.0,0.02064978]
[1747310187487,0.70938773,102310.0,102300.0,0.02164978]
[1747310188541,0.70938773,102310.0,102300.0,0.02150107]
[1747310189396,0.75748773,102310.0,102300.0,0.02150107]
[1747310191881,0.75748773,102310.0,102300.0,0.01539214]
[1747310193574,0.38196773,102310.0,102300.0,0.01539214]
[1747310193801,0.38196773,102310.0,102300.0,0.40075049]
[1747310193802,0.26313225,102310.0,102300.0,0.40075049]
[1747310194011,0.20525833,102310.0,102300.0,0.40075049]
[1747310194435,0.20525833,102310.0,102300.0,0.02150077]
[1747310195497,0.22035833,102310.0,102300.0,0.02150077]
[1747310200024,0.20525833,102310.0,102300.0,0.02150077]
[1747310200197,0.20525833,102310.0,102300.0,0.21700419]
[1747310200404,0.20525833,102310.0,102300.0,0.02150077]
[1747310203915,0.22115833,102310.0,102300.0,0.02150077]
[1747310206435,0.20525833,102310.0,102300.0,0.02150077]
[1747310207433,0.22135833,102310.0,102300.0,0.02150077]
[1747310209611,0.23785833,102310.0,102300.0,0.02150077]
[1747310210007,0.23785833,102310.0,102300.0,0.21700419]
[1747310210224,0.20525833,102310.0,102300.0,0.23350419]
[1747310210436,0.19548431,102310.0,102300.0,0.02150077]
[1747310210838,0.21118431,102310.0,102300.0,0.02150077]
[1747310211335,0.21118431,102310.0,102300.0,0.21700419]
[1747310212378,0.19548431,102310.0,102300.0,0.26865423]
[1747310212559,0.19548431,102310.0,102300.0,0.23734707]
[1747310213716,0.19548431,102310.0,102300.0,0.05360077]
[1747310214023,0.22698431,102310.0,102300.0,0.02150077]
[1747310215225,0.22155833,102310.0,102300.0,0.21700419]
[1747310215424,0.22480589,102310.0,102300.0,0.45080054]
[1747310215673,0.23457886,102310.0,102300.0,0.64432076]
[1747310215843,0.24435384,102310.0,102300.0,0.47423183]
[1747310216042,0.23458039,102310.0,102300.0,0.45080006]
[1747310216478,0.22480666,102310.0,102300.0,0.45080006]
[1747310217012,0.22480666,102310.0,102300.0,0.46057465]
[1747310217198,0.22480666,102310.0,102300.0,0.47034915]
[1747310217597,0.22480666,102310.0,102300.0,0.46057465]
[1747310219608,0.02932235,102310.0,102300.0,0.46057465]
[1747310219993,0.01954814,102310.0,102300.0,0.47034915]
[1747310220210,0.01954775,102310.0,102300.0,0.47034915]
[1747310220421,0.02932187,102310.0,102300.0,0.47034915]
[1747310221261,0.23458039,102310.0,102300.0,0.47034915]
[1747310222071,0.002,102320.0,102310.0,0.26087329]
[1747310222277,0.002,102320.0,102310.0,0.46416696]
[1747310222445,0.002,102320.0,102310.0,0.56147636]
[1747310222618,0.002,102320.0,102310.0,0.56758499]
[1747310223393,0.002,102320.0,102310.0,0.57058499]
[1747310223851,0.04408757,102330.0,102320.0,0.26952467]
[1747310224060,0.04408757,102330.0,102320.0,0.45327097]
[1747310224657,0.04408757,102330.0,102320.0,0.4593796]
[1747310225051,0.04413581,102330.0,102320.0,0.4593796]
[1747310225290,0.00504824,102330.0,102320.0,0.6431259]
[1747310225456,0.00504824,102330.0,102320.0,0.7404353]
[1747310226225,0.00504824,102330.0,102320.0,0.7414353]
[1747310226782,0.00504824,102330.0,102320.0,0.7404353]
[1747310226983,0.00504824,102330.0,102320.0,0.7434353]
[1747310227186,0.00504824,102330.0,102320.0,1.6764816]
[1747310227643,0.00504824,102330.0,102320.0,1.4927353]
[1747310227846,0.00504824,102330.0,102320.0,1.4937353]
[1747310228004,0.00504824,102330.0,102320.0,1.4897353]
[1747310228205,0.00504824,102330.0,102320.0,1.8683753]
[1747310228623,0.00504824,102330.0,102320.0,1.6488216]
[1747310228800,0.00504824,102330.0,102320.0,1.6528216]
[1747310229209,0.00504824,102330.0,102320.0,1.6588216]
[1747310229380,0.00504824,102330.0,102320.0,1.66732408]
[1747310229580,0.00504824,102330.0,102320.0,1.66132408]
[1747310229798,0.01038237,102350.0,102340.0,0.60968074]
[1747310229799,0.00125108,102350.0,102340.0,0.60968074]
[1747310230020,0.00129931,102350.0,102340.0,1.46542878]
[1747310231581,0.00129931,102350.0,102340.0,1.45932015]
[1747310231772,0.00129931,102350.0,102340.0,1.46232015]
[1747310231985,0.00129931,102350.0,102340.0,1.46842435]
[1747310232421,0.00129931,102350.0,102340.0,2.18033504]
[1747310233040,0.00129931,102350.0,102340.0,1.90646435]
[1747310233371,0.00129931,102350.0,102340.0,2.18023084]
[1747310234224,0.07851219,102390.0,102380.0,0.27069294]
[1747310234425,0.07851219,102390.0,102380.0,0.73780363]
[1747310234426,0.09852633,102390.0,102380.0,0.73780363]
[1747310234871,0.09852633,102390.0,102380.0,0.74390656]
[1747310235072,0.1180589,102390.0,102380.0,0.43253587]
[1747310235276,0.10829252,102390.0,102380.0,0.43253587]
[1747310236217,0.1180589,102390.0,102380.0,0.42643294]
[1747310236427,0.10829252,102390.0,102380.0,0.42643294]
[1747310236631,0.02978033,102390.0,102380.0,0.42643294]
[1747310236842,0.03954662,102390.0,102380.0,0.42643294]
[1747310237053,0.03954662,102390.0,102380.0,0.42743294]
[1747310237759,0.049313,102390.0,102380.0,0.42743294]
[1747310238006,0.049313,102390.0,102380.0,0.3980915]
[1747310238007,0.24674657,102390.0,102380.0,0.3980915]
[1747310238217,0.24674657,102390.0,102380.0,0.41762589]
[1747310238389,0.24674657,102390.0,102380.0,0.22065884]
[1747310238528,0.24674657,102390.0,102380.0,0.24019323]
[1747310238730,0.24674657,102390.0,102380.0,0.263625]
[1747310239093,0.24674657,102390.0,102380.0,0.24996028]
[1747310239444,0.24674657,102390.0,102380.0,0.01554085]
[1747310242759,0.24674657,102390.0,102380.0,0.01454085]
[1747310242922,0.24674657,102390.0,102380.0,0.01754085]
[1747310243331,0.24674657,102390.0,102380.0,0.01454085]
[1747310243723,0.24674657,102390.0,102380.0,0.01754085]
[1747310246335,0.24674657,102390.0,102380.0,0.22265884]
[1747310246740,0.02978081,102390.0,102380.0,0.24219285]
[1747310247638,0.00048233,102390.0,102380.0,0.25749285]
[1747310247846,0.00048233,102390.0,102380.0,0.27299285]
[1747310248491,0.00048233,102390.0,102380.0,0.46011285]
[1747310250562,0.00048233,102390.0,102380.0,1.08462225]
[1747310252979,0.00048233,102390.0,102380.0,1.08162225]
[1747310253208,0.00048233,102390.0,102380.0,1.09062225]
[1747310255428,0.00048233,102390.0,102380.0,0.7224052]
[1747310255662,0.00048233,102390.0,102380.0,1.0966452]
[1747310255870,0.00048233,102390.0,102380.0,0.7224052]
[1747310257624,0.00048233,102390.0,102380.0,0.76773903]
[1747310258231,0.00976486,102400.0,102390.0,0.239171]
[1747310258435,0.00981308,102400.0,102390.0,0.52962335]
[1747310258902,0.00981298,102400.0,102390.0,0.54492335]
[1747310259472,4.822e-05,102400.0,102390.0,0.54892335]
[1747310259692,4.822e-05,102400.0,102390.0,0.56652335]
[1747310259895,4.822e-05,102400.0,102390.0,0.75352335]
[1747310261294,4.822e-05,102400.0,102390.0,0.36288335]
[1747310261487,4.822e-05,102400.0,102390.0,0.72158335]
[1747310263395,4.822e-05,102400.0,102390.0,0.73768335]
[1747310263606,4.822e-05,102400.0,102390.0,0.75288335]
[1747310263783,4.822e-05,102400.0,102390.0,0.79821718]
[1747310263988,4.822e-05,102400.0,102390.0,0.42421718]
[1747310264139,4.822e-05,102400.0,102390.0,0.79821718]
[1747310264875,4.822e-05,102400.0,102390.0,0.76691718]
[1747310265052,0.00981308,102400.0,102390.0,0.76691718]
[1747310265254,4.822e-05,102400.0,102390.0,0.76691718]
[1747310266417,4.822e-05,102400.0,102390.0,0.78191718]
[1747310266628,4.822e-05,102400.0,102390.0,0.79691718]
[1747310266787,4.822e-05,102400.0,102390.0,0.79712486]
[1747310267488,0.00981298,102400.0,102390.0,0.76612486]
[1747310267732,4.822e-05,102400.0,102390.0,0.76212486]
[1747310267885,4.822e-05,102400.0,102390.0,0.76512486]
[1747310268087,4.822e-05,102400.0,102390.0,0.76812486]
[1747310268294,4.822e-05,102400.0,102390.0,0.77112486]
[1747310268493,4.822e-05,102400.0,102390.0,0.76512486]
[1747310268697,4.822e-05,102400.0,102390.0,0.80232486]
[1747310269123,4.822e-05,102400.0,102390.0,0.42832486]
[1747310269340,4.822e-05,102400.0,102390.0,0.80228486]
[1747310269971,4.822e-05,102400.0,102390.0,0.77108486]
[1747310270416,4.822e-05,102400.0,102390.0,0.39712486]
[1747310270651,0.02611308,102400.0,102390.0,0.62844163]
[1747310270884,0.01634822,102400.0,102390.0,0.62844163]
[1747310271313,0.01634822,102400.0,102390.0,0.25448163]
[1747310272550,4.822e-05,102400.0,102390.0,0.36769103]
[1747310272749,4.822e-05,102400.0,102390.0,0.38319103]
[1747310273047,4.822e-05,102400.0,102390.0,0.72319103]
[1747310275963,4.822e-05,102400.0,102390.0,0.69179103]
[1747310276139,4.822e-05,102400.0,102390.0,1.06575103]
[1747310276467,4.822e-05,102400.0,102390.0,1.12498443]
[1747310277034,4.822e-05,102400.0,102390.0,1.12494443]
[1747310277226,4.822e-05,102400.0,102390.0,0.75102443]